bitfinex/quotes_BTCUSD_20240815
["timestamp","ask_amount","ask_price","bid_price","bid_amount"]
[1723687150011,0.239655,58418.0,58391.0,0.1341]
[1723687150212,0.239655,58418.0,58383.0,0.1382]
[1723687150213,0.08577727,58392.0,58383.0,0.1382]
[1723687150492,0.08577727,58392.0,58379.0,0.1082]
[1723687150715,0.08577727,58398.0,58379.0,0.1082]
[1723687150912,0.08577727,58404.0,58387.0,0.119888]
[1723687150913,0.119857,58403.0,58387.0,0.119888]
[1723687151145,0.239795,58384.0,58366.0,0.1082]
[1723687151345,0.239795,58384.0,58339.0,0.45355]
[1723687151346,0.08577727,58391.0,58357.0,0.40646362]
[1723687151347,0.08577727,58367.0,58357.0,0.40646362]
[1723687151551,0.08577727,58361.0,58343.0,0.1082]
[1723687151781,0.08577727,58349.0,58343.0,0.1082]
[1723687152009,0.119945,58360.0,58346.0,0.119972]
[1723687152211,0.08577727,58373.0,58347.0,0.0228172]
[1723687152425,0.08577727,58373.0,58353.0,0.17155454]
[1723687152426,0.51466362,58367.0,58353.0,0.17155454]
[1723687152637,0.20569627,58373.0,58359.0,0.119946]
[1723687152845,0.08577727,58373.0,58360.0,0.17155454]
[1723687153050,0.08577727,58373.0,58366.0,0.119931]
[1723687153269,0.20568327,58379.0,58348.0,0.239939]
[1723687153270,0.08577727,58379.0,58367.0,0.17155454]
[1723687153487,0.00051468,58387.0,58376.0,0.17155454]
[1723687153684,0.00051468,58387.0,58386.0,0.119891]
[1723687153904,0.00051468,58387.0,58386.0,0.599457]
[1723687154314,0.00051468,58387.0,58386.0,1.01079454]
[1723687154527,0.1371,58419.0,58386.0,0.30975454]
[1723687154740,0.1371,58419.0,58393.0,0.17155454]
[1723687154966,0.23962,58426.0,58387.0,0.023]
[1723687154967,0.00295917,58423.0,58402.0,0.1082]
[1723687155166,0.239622,58426.0,58387.0,0.023]
[1723687155167,0.08577727,58401.0,58387.0,0.023]
[1723687155389,0.01638588,58400.0,58388.0,0.51466362]
[1723687155582,0.01638588,58400.0,58387.0,0.023]
[1723687155583,0.01638588,58400.0,58389.0,0.023]
[1723687155793,0.01638588,58400.0,58389.0,0.018]
[1723687156047,0.01638588,58400.0,58390.0,0.17155454]
[1723687156244,0.01638588,58399.0,58390.0,0.17155454]
[1723687156478,0.01638588,58399.0,58386.0,0.23265454]
[1723687156479,0.08577727,58393.0,58386.0,0.1082]
[1723687156691,0.08577727,58393.0,58391.0,0.17155454]
[1723687156692,0.01638588,58392.0,58391.0,0.17155454]
[1723687157376,0.04559862,58392.0,58391.0,0.17155454]
[1723687157583,0.01638588,58392.0,58391.0,0.17155454]
[1723687157795,0.13626488,58392.0,58391.0,0.19455454]
[1723687158244,0.01638588,58392.0,58386.0,0.2431]
[1723687158443,0.01638588,58392.0,58362.0,0.239878]
[1723687158653,0.01638588,58392.0,57444.0,7.85489949]
[1723687159091,0.5310495,58392.0,58327.0,0.00826]
[1723687159319,0.5310495,58392.0,58279.0,0.08577727]
[1723687159320,0.370124,58313.0,58312.0,0.42894299]
[1723687159529,0.370124,58313.0,58309.0,0.000826]
[1723687159530,0.360144,58310.0,58309.0,0.000826]
[1723687159739,0.61024,58310.0,58309.0,0.000826]
[1723687159961,0.14641255,58310.0,58309.0,0.000826]
[1723687160202,0.01635949,58310.0,58309.0,0.17238054]
[1723687160413,0.1,58336.0,58309.0,0.17238054]
[1723687160414,0.01,58330.0,58309.0,0.18961859]
[1723687160625,0.53103085,58329.0,58328.0,0.53158554]
[1723687160876,0.57342187,58348.0,58319.0,0.002]
[1723687160877,0.02917524,58343.0,58342.0,0.119982]
[1723687161111,0.51466362,58348.0,58347.0,0.119971]
[1723687161532,0.05875825,58374.0,58343.0,0.1075]
[1723687161533,0.02918094,58357.0,58356.0,0.119953]
[1723687161733,0.00296068,58380.0,58356.0,0.17155454]
[1723687161734,0.01,58364.0,58356.0,0.17155454]
[1723687161965,0.02918094,58363.0,58357.0,0.17155454]
[1723687162174,0.02918094,58364.0,58357.0,0.17155454]
[1723687162382,0.04694786,58375.0,58357.0,0.17155454]
[1723687162383,0.02918094,58363.0,58362.0,0.119941]
[1723687162596,0.02918094,58363.0,58362.0,0.29149554]
[1723687162824,0.15911994,58363.0,58362.0,0.023]
[1723687163028,0.12,58333.0,58332.0,0.2458]
[1723687163228,0.360001,58333.0,58332.0,0.17155454]
[1723687163655,0.87919077,58333.0,58332.0,0.17155454]
[1723687163861,0.63918977,58333.0,58332.0,0.17155454]
[1723687164088,0.15918777,58333.0,58332.0,0.17155454]
[1723687164297,0.00518777,58333.0,58332.0,0.30871199]
[1723687164521,0.01,58346.0,58338.0,0.11999]
[1723687164713,0.01,58346.0,58332.0,0.18870999]
[1723687164714,0.01,58346.0,58339.0,0.17155454]
[1723687165334,0.239933,58350.0,58339.0,0.17155454]
[1723687165536,0.01,58352.0,58341.0,0.17155454]
[1723687165647,0.119964,58351.0,58341.0,0.17155454]
[1723687166091,0.01,58354.0,58341.0,0.17155454]
[1723687166295,0.239954,58345.0,58341.0,0.17155454]
[1723687166496,0.01,58351.0,58342.0,0.023]
[1723687166710,0.239934,58350.0,58343.0,0.17155454]
[1723687166911,0.119976,58345.0,58344.0,0.023]
[1723687167130,0.119976,58345.0,58343.0,0.17155454]
[1723687167131,0.119976,58345.0,58317.0,0.03395]
[1723687167132,0.600157,58318.0,58317.0,0.03395]
[1723687167342,0.61024,58310.0,58309.0,0.000826]
[1723687167558,0.89730931,58310.0,58309.0,0.000826]
[1723687167774,1.23740531,58310.0,58309.0,0.000826]
[1723687167981,0.65721331,58310.0,58309.0,0.000826]
[1723687168189,0.05697331,58310.0,58309.0,0.17238054]
[1723687168393,0.04697331,58310.0,58309.0,0.17238054]
[1723687168611,0.40711731,58310.0,58309.0,0.17238054]
[1723687168816,0.04697331,58310.0,58309.0,0.17238054]
[1723687169024,0.16702131,58310.0,58309.0,0.17238054]
[1723687169228,0.04697331,58310.0,58309.0,0.17238054]
[1723687170121,0.08577727,58318.0,58309.0,0.17238054]
[1723687170122,0.01,58314.0,58309.0,0.17238054]
[1723687170305,0.240024,58328.0,58309.0,0.17238054]
[1723687170306,0.04696152,58313.0,58312.0,0.120043]
[1723687170529,0.00734694,58313.0,58312.0,0.94547154]
[1723687170746,0.05883833,58317.0,58316.0,0.360106]
[1723687170958,0.05883833,58320.0,58319.0,0.360087]
[1723687171182,0.05885004,58325.0,58319.0,0.17155454]
[1723687171423,0.458705,58357.0,58312.0,0.1737]
[1723687171424,0.01,58351.0,58324.0,0.17155454]
[1723687171671,0.01,58351.0,58320.0,0.01715545]
[1723687171672,0.01,58352.0,58340.0,0.53151254]
[1723687171954,0.01,58352.0,58340.0,0.17155454]
[1723687171955,0.01,58351.0,58340.0,0.17155454]
[1723687172194,0.01,58355.0,58340.0,0.17155454]
[1723687172445,0.2188,58372.0,58317.0,0.3967]
[1723687172446,0.01,58339.0,58317.0,0.3967]
[1723687172685,0.08577727,58343.0,58317.0,0.3967]
[1723687172686,0.01,58322.0,58320.0,0.17155454]
[1723687172924,0.08577727,58326.0,58309.0,0.000826]
[1723687172925,0.850336,58310.0,58309.0,0.000826]
[1723687173158,0.38651223,58310.0,58309.0,0.000826]
[1723687173463,0.08577727,58316.0,58309.0,0.000826]
[1723687173464,0.120035,58316.0,58309.0,0.17238054]
[1723687173678,0.01636468,58315.0,58309.0,0.000826]
[1723687173917,0.240049,58322.0,58310.0,0.17155454]
[1723687173918,0.01636468,58314.0,58310.0,0.17155454]
[1723687174156,0.01636468,58313.0,58310.0,0.41164954]
[1723687174402,0.01636468,58313.0,58309.0,0.000826]
[1723687174403,0.04554426,58312.0,58311.0,0.3626696]
[1723687174652,0.02895381,58312.0,58311.0,0.99731514]
[1723687174888,0.08577727,58349.0,58318.0,0.360094]
[1723687174889,0.05882028,58320.0,58318.0,0.360094]
[1723687175105,0.05882028,58321.0,58320.0,0.840189]
[1723687175310,0.03712241,58329.0,58327.0,0.240026]
[1723687175515,0.01,58345.0,58328.0,0.19455454]
[1723687175516,0.239957,58344.0,58328.0,0.19455454]
[1723687175747,0.119976,58345.0,58336.0,0.119994]
[1723687175950,0.01,58350.0,58337.0,0.17155454]
[1723687176156,0.239936,58349.0,58340.0,0.17155454]
[1723687176367,0.08577727,58354.0,58341.0,0.19455454]
[1723687176368,0.01,58351.0,58341.0,0.19455454]
[1723687176575,0.129964,58351.0,58341.0,0.19595497]
[1723687176776,0.239897,58359.0,58343.0,0.239959]
[1723687176777,0.01,58359.0,58343.0,0.239959]
[1723687176988,0.1726,58377.0,58354.0,0.119956]
[1723687176989,0.01,58364.0,58354.0,0.119956]
[1723687177198,0.01,58364.0,58355.0,0.17295462]
[1723687177402,0.01009007,58405.0,58355.0,0.17295462]
[1723687177403,0.01,58367.0,58356.0,0.02440059]
[1723687177607,0.01,58366.0,58357.0,0.17155454]
[1723687177811,0.01,58370.0,58358.0,0.02440054]
[1723687178013,0.01,58370.0,58350.0,0.239931]
[1723687178014,0.119929,58368.0,58359.0,0.17155454]
[1723687178222,0.119916,58374.0,58365.0,0.119934]
[1723687178426,0.119916,58374.0,58359.0,0.19455454]
[1723687178427,0.11993,58367.0,58366.0,0.17155454]
[1723687178626,0.11993,58367.0,58341.0,0.2353]
[1723687178627,0.23996,58343.0,58341.0,0.2353]
[1723687178845,0.2327,58366.0,58332.0,0.4091]
[1723687178846,0.01,58341.0,58332.0,0.4091]
[1723687179053,0.01,58341.0,58297.0,0.0931]
[1723687179054,0.09577727,58333.0,58322.0,0.4091]
[1723687179263,0.600105,58323.0,58322.0,0.4091]
[1723687179488,0.04695986,58323.0,58322.0,0.58065454]
[1723687179693,0.04695986,58323.0,58322.0,0.63871999]
[1723687179894,0.04695986,58323.0,58322.0,0.75874299]
[1723687180111,0.04695986,58323.0,58322.0,0.99878899]
[1723687180545,0.51466362,58335.0,58322.0,0.63871999]
[1723687180792,0.08577727,58336.0,58322.0,0.63871999]
[1723687180793,0.04693603,58334.0,58326.0,0.240027]
[1723687181019,0.01,58340.0,58326.0,0.240027]
[1723687181020,0.04694092,58333.0,58327.0,0.240025]
[1723687181251,0.04694092,58332.0,58327.0,0.240024]
[1723687181457,0.04694092,58331.0,58329.0,0.120008]
[1723687181667,0.239975,58340.0,58329.0,0.120008]
[1723687181668,0.04694092,58330.0,58329.0,0.42710353]
[1723687182096,0.04694092,58330.0,58329.0,0.86167507]
[1723687182535,0.04694092,58330.0,58329.0,0.62165807]
[1723687182743,0.05884662,58335.0,58334.0,0.239997]
[1723687182937,0.05884662,58339.0,58338.0,0.11999]
[1723687183145,0.05884662,58341.0,58340.0,0.359958]
[1723687183345,0.11996,58353.0,58344.0,0.2165]
[1723687183346,0.05884662,58349.0,58344.0,0.2165]
[1723687183602,0.51466362,58353.0,58344.0,0.2165]
[1723687183603,0.04695332,58348.0,58347.0,0.359913]
[1723687183767,0.01,58346.0,58330.0,0.2165]
[1723687183969,0.01,58346.0,58333.0,0.29155354]
[1723687183970,0.05884525,58340.0,58333.0,0.29155354]
[1723687184173,0.08577727,58344.0,58338.0,0.11999]
[1723687184174,0.04695332,58339.0,58338.0,0.11999]
[1723687184371,0.04695332,58339.0,58338.0,0.19455454]
[1723687184836,0.04695332,58339.0,58338.0,0.55452454]
[1723687184837,0.13497583,58339.0,58338.0,0.55452454]
[1723687185061,0.02917763,58339.0,58338.0,1.03448454]
[1723687185184,0.07613095,58339.0,58338.0,0.79450454]
[1723687185386,0.07613095,58339.0,58338.0,0.19455454]
[1723687185387,0.02917763,58339.0,58338.0,0.19455454]
[1723687185744,0.0761298,58339.0,58338.0,0.19455454]
[1723687186014,0.02917763,58339.0,58338.0,0.43453454]
[1723687186224,0.01219765,58339.0,58338.0,0.79450454]
[1723687186462,0.05884488,58352.0,58338.0,0.51398499]
[1723687186685,0.51466362,58349.0,58339.0,0.023]
[1723687186902,0.01,58357.0,58339.0,0.023]
[1723687186903,0.06332849,58348.0,58339.0,0.023]
[1723687187115,0.04695373,58349.0,58344.0,0.239953]
[1723687187381,0.08577727,58359.0,58346.0,0.119972]
[1723687187382,0.01635924,58348.0,58346.0,0.119972]
[1723687187598,0.249887,58361.0,58359.0,0.119947]
[1723687187599,0.04695373,58360.0,58359.0,0.119947]
[1723687187809,0.04695373,58360.0,58359.0,0.53139554]
[1723687187810,0.01636047,58360.0,58359.0,0.53139554]
[1723687188019,0.01636047,58360.0,58359.0,0.79428954]
[1723687188706,0.49614047,58360.0,58359.0,0.19455454]
[1723687188922,0.01,58358.0,58338.0,0.3941]
[1723687189124,0.05887008,58353.0,58347.0,0.239943]
[1723687189324,0.14911082,58357.0,58348.0,0.17155454]
[1723687189325,0.01636047,58352.0,58348.0,0.17155454]
[1723687189530,0.01636047,58351.0,58348.0,0.17155454]
[1723687189733,0.239909,58356.0,58348.0,0.17155454]
[1723687189734,0.01636047,58350.0,58348.0,0.17155454]
[1723687189963,0.05887008,58356.0,58349.0,0.17155454]
[1723687190144,0.359896,58350.0,58349.0,0.17155454]
[1723687190377,0.01636038,58350.0,58349.0,0.19455454]
[1723687191207,0.01,58367.0,58350.0,0.23993]
[1723687191411,0.05887281,58363.0,58357.0,0.11995]
[1723687191641,0.249862,58367.0,58358.0,0.17155454]
[1723687191873,0.01636332,58366.0,58365.0,0.119934]
[1723687192099,0.01636435,58366.0,58359.0,0.2183]
[1723687192318,0.239882,58362.0,58347.0,0.2183]
[1723687192564,0.08577727,58360.0,58348.0,0.023]
[1723687192776,0.119956,58355.0,58348.0,0.023]
[1723687192997,0.06888764,58364.0,58353.0,0.119959]
[1723687192998,0.01636349,58354.0,58353.0,0.119959]
[1723687193253,0.01636349,58354.0,58353.0,0.79435154]
[1723687193455,0.01636349,58354.0,58353.0,0.19455454]
[1723687193869,0.13632049,58354.0,58353.0,0.17155454]
[1723687194083,0.38623549,58354.0,58353.0,0.17155454]
[1723687194300,0.38623549,58354.0,58328.0,0.3896]
[1723687194301,0.01,58347.0,58328.0,0.3896]
[1723687194511,0.08577727,58344.0,58335.0,0.17155454]
[1723687194725,0.01635923,58343.0,58340.0,0.17155454]
[1723687194933,0.38455279,58356.0,58328.0,0.62962]
[1723687194934,0.01635923,58342.0,58329.0,0.240017]
[1723687195162,0.01635923,58341.0,58338.0,0.000828]
[1723687195411,0.01635923,58340.0,58338.0,0.000828]
[1723687195617,0.01,58349.0,58339.0,0.17155454]
[1723687195845,0.01636292,58348.0,58339.0,0.29154054]
[1723687196131,0.01636292,58347.0,58343.0,0.17155454]
[1723687196361,0.01636292,58347.0,58327.0,0.002]
[1723687196362,0.224,58324.0,58319.0,0.03433]
[1723687196583,0.01,58312.0,58309.0,0.000826]
[1723687196794,0.37649292,58312.0,58309.0,0.000826]
[1723687197215,0.37649292,58312.0,58311.0,0.17678604]
[1723687197422,0.61657992,58312.0,58311.0,0.17678604]
[1723687197849,0.37649292,58312.0,58311.0,0.17678604]
[1723687198092,0.01636292,58312.0,58311.0,0.17678604]
[1723687198291,0.216399,58285.0,58272.0,0.00027]
[1723687198511,0.38665113,58285.0,58284.0,0.068682]
[1723687198717,0.62664449,58285.0,58284.0,0.068682]
[1723687198927,0.62664449,58285.0,58272.0,0.00027]
[1723687198928,0.360366,58274.0,58272.0,0.00027]
[1723687199143,0.370366,58274.0,58272.0,0.00027]
[1723687199356,0.01634267,58274.0,58273.0,0.68398871]
[1723687199573,0.12012,58275.0,58273.0,0.68398871]
[1723687199786,0.0328,58286.0,58273.0,0.68398871]
[1723687199787,0.120102,58284.0,58274.0,0.17155454]
[1723687200013,0.01,58281.0,58274.0,0.17155454]
[1723687200485,0.01,58281.0,58273.0,0.51243417]
[1723687200486,0.01,58298.0,58277.0,0.1762]
[1723687200695,0.01634984,58297.0,58284.0,0.240202]
[1723687200911,0.51466362,58305.0,58295.0,0.17155454]
[1723687201127,0.68926362,58320.0,58298.0,0.002]
[1723687201128,0.51466362,58320.0,58298.0,0.002]
[1723687201348,0.51466362,58320.0,58313.0,0.240082]
[1723687201605,0.51466362,58320.0,58312.0,0.2648]
[1723687201606,0.75472062,58320.0,58312.0,0.2648]
[1723687201811,0.01,58324.0,58314.0,0.023]
[1723687202032,0.239977,58339.0,58295.0,0.120077]
[1723687202033,0.01,58311.0,58295.0,0.120077]
[1723687202244,0.01,58308.0,58296.0,0.19455454]
[1723687202452,0.120056,58306.0,58296.0,0.31463054]
[1723687202664,0.240089,58312.0,58299.0,0.12007]
[1723687202892,0.08577727,58317.0,58296.0,0.19455454]
[1723687202893,0.01,58305.0,58300.0,0.17155454]
[1723687203096,0.60184145,58311.0,58300.0,0.17155454]
[1723687203097,0.360199,58301.0,58300.0,0.17155454]
[1723687203304,0.08717783,58311.0,58300.0,0.19455454]
[1723687203305,0.01,58307.0,58300.0,0.19455454]
[1723687203517,0.01,58311.0,58300.0,0.19100999]
[1723687203743,0.130016,58326.0,58309.0,0.17155454]
[1723687203948,0.01635895,58325.0,58310.0,0.2163]
[1723687204212,0.513902,58333.0,58310.0,0.2163]
[1723687204213,0.2839,58333.0,58314.0,0.240077]
[1723687204435,0.51466362,58331.0,58330.0,0.120006]
[1723687204650,0.51466362,58331.0,58330.0,0.023]
[1723687204871,0.01,58326.0,58315.0,0.2761]
[1723687205086,0.21581027,58317.0,58316.0,0.17155454]
[1723687205290,0.45587727,58317.0,58316.0,0.17155454]
[1723687205726,0.01,58329.0,58316.0,0.21170999]
[1723687205939,0.01,58326.0,58317.0,0.023]
[1723687206145,0.01,58326.0,58318.0,0.17155454]
[1723687206573,0.240037,58325.0,58319.0,0.023]
[1723687206782,0.01,58326.0,58320.0,0.17155454]
[1723687206993,0.01,58326.0,58321.0,0.023]
[1723687206994,0.120018,58325.0,58321.0,0.023]
[1723687207221,0.120018,58325.0,58320.0,0.17155454]
[1723687207222,0.20580227,58321.0,58320.0,0.17155454]
[1723687207424,0.20580227,58321.0,58280.0,0.51466362]
[1723687207425,0.01,58314.0,58298.0,0.240144]
[1723687207635,0.08717783,58321.0,58300.0,0.17155454]
[1723687207636,0.08577727,58305.0,58300.0,0.17155454]
[1723687207841,0.120058,58305.0,58300.0,0.17155454]
[1723687208077,0.01,58306.0,58300.0,0.17155454]
[1723687208290,0.02916894,58326.0,58291.0,0.267]
[1723687208291,0.02916894,58320.0,58304.0,0.17155454]
[1723687208501,0.120026,58321.0,58312.0,0.120042]
[1723687208502,0.01634908,58319.0,58312.0,0.120042]
[1723687208707,0.08577727,58318.0,58313.0,0.17155454]
[1723687208929,0.08577727,58336.0,58313.0,0.17155454]
[1723687208930,0.240012,58331.0,58313.0,0.17155454]
[1723687209139,0.240012,58331.0,58313.0,0.43855454]
[1723687209140,0.00140056,58330.0,58313.0,0.43855454]
[1723687209354,0.240038,58325.0,58314.0,0.04385545]
[1723687209574,0.08577727,58316.0,58300.0,0.267]
[1723687209799,0.44593327,58308.0,58307.0,0.0268813]
[1723687210006,0.44593327,58308.0,58300.0,0.17155454]
[1723687210007,0.360199,58301.0,58300.0,0.17155454]
[1723687210210,0.840465,58301.0,58300.0,0.17155454]
[1723687210431,0.360255,58292.0,58291.0,0.02688984]
[1723687210658,0.08577727,58305.0,58291.0,0.02688984]
[1723687210861,0.240136,58301.0,58291.0,0.02688984]
[1723687211077,0.00091191,58306.0,58294.0,0.17155454]
[1723687211281,0.00091191,58306.0,58295.0,0.19139898]
[1723687211507,0.00091191,58306.0,58305.0,0.60029]
[1723687211714,0.00091191,58306.0,58305.0,1.296006]
[1723687211963,0.00091191,58306.0,58305.0,0.4556]
[1723687212171,0.00091191,58306.0,58305.0,0.17155454]
[1723687212383,0.00091191,58306.0,58294.0,0.4436]
[1723687212596,0.00091191,58306.0,58305.0,0.29161254]
[1723687212826,0.00091191,58306.0,58305.0,1.01196054]
[1723687213043,0.00091191,58306.0,58305.0,0.53172854]
[1723687213287,0.00091191,58306.0,58305.0,0.77184454]
[1723687213707,0.00091191,58306.0,58305.0,1.03496054]
[1723687213919,0.2633,58334.0,58309.0,0.002]
[1723687213920,0.239999,58334.0,58309.0,0.002]
[1723687214135,0.239999,58334.0,58306.0,0.2717]
[1723687214136,0.1953,58339.0,58319.0,0.17155454]
[1723687214357,0.1953,58339.0,58321.0,0.17155454]
[1723687214546,0.120002,58333.0,58322.0,0.240042]
[1723687214757,0.08577727,58336.0,58323.0,0.17155454]
[1723687214968,0.00296222,58340.0,58324.0,0.03624545]
[1723687215176,0.00296222,58340.0,58328.0,0.12001]
[1723687215387,0.00296222,58340.0,58333.0,0.12]
[1723687215596,0.119987,58340.0,58334.0,0.17155454]
[1723687215817,0.1953,58347.0,58334.0,0.17155454]
[1723687216019,0.1953,58347.0,58335.0,0.023]
[1723687216020,0.239986,58337.0,58335.0,0.023]
[1723687216234,0.19670056,58347.0,58336.0,0.17155454]
[1723687216235,0.239948,58346.0,58336.0,0.17155454]
[1723687216446,0.30855,58359.0,58338.0,0.17155454]
[1723687216447,0.426998,58359.0,58338.0,0.17155454]
[1723687216667,0.239925,58352.0,58339.0,0.262976]
[1723687216874,0.11997,58348.0,58340.0,0.33499259]
[1723687217095,0.23992,58353.0,58341.0,0.023]
[1723687217302,0.239923,58352.0,58342.0,0.17155454]
[1723687217513,0.08577727,58354.0,58343.0,0.023]
[1723687217725,0.119966,58350.0,58344.0,0.17155454]
[1723687217946,0.239919,58353.0,58345.0,0.023]
[1723687218151,0.239923,58352.0,58346.0,0.17155454]
[1723687218366,0.08577727,58354.0,58346.0,0.17155454]
[1723687218367,0.239932,58350.0,58347.0,0.023]
[1723687218569,0.119959,58353.0,58348.0,0.17155454]
[1723687218792,0.08668918,58387.0,58353.0,0.239918]
[1723687218793,0.00904201,58365.0,58353.0,0.239918]
[1723687219014,0.00904201,58365.0,58350.0,0.4541]
[1723687219015,0.00904201,58365.0,58359.0,0.17155454]
[1723687219223,0.00904201,58365.0,58357.0,0.17155454]
[1723687219453,0.23988,58363.0,58357.0,0.17155454]
[1723687219682,0.00904201,58365.0,58358.0,0.023]
[1723687219902,0.00904201,58365.0,58359.0,0.17155454]
[1723687220112,0.00904201,58365.0,58359.0,0.19455454]
[1723687220318,0.119942,58362.0,58359.0,0.19455454]
[1723687220568,0.00904201,58365.0,58359.0,0.19455454]
[1723687220774,0.00904201,58365.0,58359.0,0.33395699]
[1723687220984,0.00904201,58365.0,58359.0,0.57385099]
[1723687221192,0.00904201,58365.0,58359.0,0.81374499]
[1723687221834,0.00904201,58365.0,58359.0,0.33395699]
[1723687222038,0.00904201,58365.0,58359.0,0.19455454]
[1723687222039,0.119937,58364.0,58359.0,0.19455454]
[1723687222249,0.24891301,58365.0,58359.0,0.19455454]
[1723687222461,0.00904201,58365.0,58359.0,0.31450154]
[1723687222661,0.00904201,58365.0,58359.0,0.79428954]
[1723687222867,0.00904201,58365.0,58359.0,1.03418354]
[1723687223080,0.00904201,58365.0,58359.0,1.37749589]
[1723687223299,0.00904201,58365.0,58364.0,0.599682]
[1723687223552,0.00904201,58365.0,58364.0,1.01110954]
[1723687224202,0.00904201,58365.0,58364.0,0.80236354]
[1723687224444,0.00904201,58365.0,58364.0,0.17155454]
[1723687224445,0.12897601,58365.0,58364.0,0.17155454]
[1723687224657,0.36884501,58365.0,58364.0,0.17155454]
[1723687225152,0.12897601,58365.0,58364.0,0.17155454]
[1723687225359,0.00904201,58365.0,58350.0,0.1855]
[1723687225565,0.08577727,58356.0,58351.0,0.31006754]
[1723687225778,0.239874,58364.0,58351.0,0.31006754]
[1723687225779,0.2664,58375.0,58364.0,0.359809]
[1723687226002,0.51466362,58374.0,58364.0,0.17155454]
[1723687226209,0.2664,58375.0,58364.0,0.17155454]
[1723687226421,0.50623,58375.0,58364.0,0.17155454]
[1723687226635,0.00140056,58370.0,58364.0,0.17155454]
[1723687226845,0.2664,58375.0,58364.0,0.17155454]
[1723687226846,0.239854,58369.0,58364.0,0.17155454]
[1723687227060,0.00140056,58368.0,58344.0,0.239954]
[1723687227262,0.08577727,58354.0,58345.0,0.41150454]
[1723687227484,0.08046336,58360.0,58346.0,0.11971682]
[1723687227705,0.08046336,58360.0,58347.0,0.17155454]
[1723687227706,0.239903,58357.0,58347.0,0.17155454]
[1723687227911,0.239924,58352.0,58347.0,0.17155454]
[1723687228150,0.119959,58354.0,58347.0,0.17155454]
[1723687228363,0.08046336,58360.0,58347.0,0.17155454]
[1723687228579,0.119955,58356.0,58347.0,0.17155454]
[1723687228791,0.2399,58358.0,58348.0,0.04115045]
[1723687229015,0.359896,58350.0,58349.0,0.17155454]
[1723687229225,0.08577727,58353.0,58349.0,0.17155454]
[1723687229437,0.119964,58351.0,58349.0,0.17155454]
[1723687229644,0.20573627,58353.0,58349.0,0.17155454]
[1723687229848,0.08577727,58353.0,58349.0,0.17155454]
[1723687230062,0.239886,58361.0,58351.0,0.119963]
[1723687230269,0.239894,58359.0,58352.0,0.17155454]
[1723687230478,0.08577727,58354.0,58353.0,0.023]
[1723687230687,0.08577727,58354.0,58353.0,0.19455454]
[1723687231122,0.20573427,58354.0,58353.0,0.19455454]
[1723687231364,0.20573427,58354.0,58303.0,0.05076167]
[1723687231365,0.119966,58350.0,58332.0,0.22393]
[1723687231593,0.2754,58364.0,58349.0,0.17155454]
[1723687231820,0.51466362,58362.0,58350.0,0.17155454]
[1723687232056,0.08577727,58363.0,58355.0,0.119954]
[1723687232268,0.08577727,58363.0,58354.0,0.119957]
[1723687232478,0.01,58391.0,58355.0,0.0359881]
[1723687232687,0.119951,58357.0,58356.0,0.023]
[1723687232904,0.08577727,58362.0,58356.0,0.19455454]
[1723687233117,0.08577727,58362.0,58357.0,0.17155454]
[1723687233118,0.119948,58359.0,58357.0,0.17155454]
[1723687233344,0.119948,58359.0,58358.0,0.023]
[1723687233549,0.08577727,58362.0,58358.0,0.19455454]
[1723687233756,0.119947,58359.0,58358.0,0.023]
[1723687233974,0.00904201,58365.0,58358.0,0.19455454]
[1723687234189,0.00904201,58365.0,58359.0,0.04483681]
[1723687234419,0.00904201,58365.0,58358.0,0.19455454]
[1723687234420,0.119942,58362.0,58358.0,0.17155454]
[1723687234656,0.119945,58360.0,58359.0,0.023]
[1723687234862,0.119943,58361.0,58359.0,0.023]
[1723687235078,0.119945,58360.0,58359.0,0.023]
[1723687235284,0.239882,58362.0,58359.0,0.023]
[1723687235285,0.119942,58362.0,58359.0,0.023]
[1723687235496,0.08577727,58364.0,58360.0,0.17155454]
[1723687235702,0.359829,58361.0,58360.0,0.17155454]
[1723687235928,0.08577727,58364.0,58360.0,0.17155454]
[1723687236135,0.359829,58361.0,58360.0,0.17155454]
[1723687236558,0.119951,58357.0,58356.0,0.023]
[1723687236768,0.23989,58361.0,58356.0,0.19455454]
[1723687236980,0.08717783,58364.0,58356.0,0.023]
[1723687236981,0.359853,58357.0,58356.0,0.023]
[1723687237405,0.119951,58357.0,58356.0,0.023]
[1723687237607,0.00904201,58365.0,58356.0,0.19455454]
[1723687237818,0.00904201,58365.0,58357.0,0.25935645]
[1723687238036,0.08577727,58364.0,58358.0,0.023]
[1723687238268,0.00904201,58365.0,58359.0,0.17155454]
[1723687238485,0.00904201,58365.0,58360.0,0.262889]
[1723687238698,0.00904201,58365.0,58361.0,0.17155454]
[1723687238920,0.00904201,58365.0,58362.0,0.05444995]
[1723687239093,0.00904201,58365.0,58363.0,0.29149254]
[1723687239332,0.00904201,58365.0,58363.0,0.17155454]
[1723687239547,0.00904201,58365.0,58364.0,0.023]
[1723687239816,0.00904201,58365.0,58364.0,0.17155454]
[1723687240019,0.00904201,58365.0,58364.0,0.19455454]
[1723687240435,0.00904201,58365.0,58364.0,0.79423654]
[1723687240642,0.00904201,58365.0,58364.0,1.24063654]
[1723687240851,0.00904201,58365.0,58364.0,1.48050954]
[1723687241304,0.00091191,58387.0,58365.0,0.14805095]
[1723687241517,0.00091191,58387.0,58386.0,0.17155454]
[1723687241952,0.00091191,58387.0,58386.0,0.53122854]
[1723687242824,0.00091191,58387.0,58386.0,0.29144554]
[1723687243035,0.00091191,58387.0,58386.0,0.17155454]
[1723687243235,0.00091191,58387.0,58378.0,0.3377]
[1723687243448,0.00091191,58387.0,58386.0,0.17155454]
[1723687243646,0.00091191,58387.0,58386.0,0.19455454]
[1723687243820,0.00091191,58387.0,58386.0,0.17155454]
[1723687243821,0.12080091,58387.0,58386.0,0.17155454]
[1723687244238,0.22292026,58387.0,58386.0,0.17155454]
[1723687244661,0.70247826,58387.0,58386.0,0.17155454]
[1723687244871,0.70247826,58387.0,58362.0,0.2765]
[1723687244872,0.1861,58384.0,58362.0,0.2765]
[1723687245090,0.08577727,58375.0,58369.0,0.51466362]
[1723687245291,0.08577727,58381.0,58371.0,0.17155454]
[1723687245493,0.00091191,58387.0,58377.0,0.17155454]
[1723687245700,0.08577727,58386.0,58381.0,0.119901]
[1723687245905,0.0163417,58385.0,58382.0,0.17155454]